[Event "45th FIDE Olympiad 2024"]
[Site "Budapest"]
[Date "2024.09.18"]
[Round "7.49"]
[White "Pereira, Sergio"]
[Black "Mathurin, Nathaniel"]
[Result "0-1"]
[WhiteElo "1988"]
[BlackElo "1982"]
[PlyCount "114"]
[EventDate "2024.09.05"]
[EventType "team-tourn"]
[EventCountry "HUN"]
[WhiteTeam "Sao Tome and Principe"]
[BlackTeam "Saint Lucia"]
[WhiteTeamCountry "SAO"]
[TimeControl "40/5400+30:1800+30"]

1. e4 c5 2. Nc3 e6 3. Nge2 a6 4. g3 h5 5. h3 Nc6 6. Bg2 Nf6 7. O-O Qc7 8. d4 cxd4 9. Nxd4 Nxd4 10. Qxd4 Bc5 11. Qd3 d6 12. Bf4 Nd7 13. Na4 e5 14. Bg5 Bd4 15. c3 Ba7 16. b4 b5 17. Nb2 Bb7 18. Rad1 Rc8 19. Qxd6 Qxd6 20. Rxd6 Rxc3 21. Nd1 Ra3 22. Be3 Bb8 23. Rd2 Ke7 24. Rc2 Rc8 25. Bc5+ Nxc5 26. bxc5 Ba7 27. Ne3 Rxc5 28. Nf5+ Kf6 29. Rxc5 Bxc5 30. Rc1 g6 31. Ne3 Bxe3 32. fxe3 Ra4 33. Rc2 Bxe4 34. Bxe4 Rxe4 35. Rc6+ Kf5 36. Rxa6 Rxe3 37. Kf2 Rc3 38. Ra5 Ke4 39. Rxb5 Rc2+ 40. Kg1 Rxa2 41. Rb7 f6 42. Rb6 Kf5 43. Kh1 Rd2 44. Ra6 h4 45. g4+ Kg5 46. Re6 Re2 47. Ra6 f5 48. gxf5 gxf5 49. Ra8 e4 50. Rh8 Kf4 51. Rg8 Re3 52. Kh2 Rg3 53. Rh8 e3 54. Rxh4+ Kf3 55. Rh5 f4 56. Re5 e2 57. h4 Kf2 {0-} 0-1

[Event "45th FIDE Olympiad 2024"]
[Site "Budapest"]
[Date "2024.09.18"]
[Round "7.50"]
[White "Meshkovs, Nikita"]
[Black "Anton Guijarro, David"]
[Result "1/2-1/2"]
[ECO "E16"]
[WhiteElo "2534"]
[BlackElo "2665"]
[Annotator "TA"]
[PlyCount "133"]
[EventDate "2024.09.05"]
[EventType "team-tourn"]
[EventCountry "HUN"]
[SourceTitle "playchess.com"]
[Source "ChessBase"]
[SourceQuality "1"]
[WhiteTeam "Latvia"]
[BlackTeam "Spain"]
[WhiteTeamCountry "LAT"]
[BlackTeamCountry "ESP"]
[TimeControl "40/5400+30:1800+30"]

{[%evp 44,133,35,0,0,0,0,0,0,0,0,0,0,0,0,0,0,0,0,0,0,-52,-6,-10,-14,-10,-28,-9,-24,-11,0,0,0,0,0,0,0,0,0,0,0,-5,-10,-14,0,0,0,0,0,0,0,0,0,0,0,0,0,0,0,0,0,0,0,0,0,0,0,0,0,0,0,0,0,0,0,0,0,0,0,0,0,0,0,0,0,0,0,0,0,0,0,0]} 1. Nf3 {[%emt 0:00:05]} Nf6 {[%emt 0:00:46]} 2. d4 {[%emt 0:00:24]} e6 {[%emt 0:01:15]} 3. c4 {[%emt 0:00:55]} Bb4+ {[%emt 0:00:39]} 4. Bd2 {[%emt 0:00:44]} c5 {[%emt 0:00:08]} 5. Bxb4 {[%emt 0:02:00]} cxb4 {[%emt 0:00:05]} 6. Nbd2 {[%emt 0:04:11]} O-O {[%emt 0:04:17]} 7. g3 {[%emt 0:03:13]} b6 {[%emt 0:02:53]} 8. Bg2 {[%emt 0:02:30]} Bb7 {[%emt 0:00:33]} 9. O-O {[%emt 0:01:18]} a5 {[%emt 0:02:05]} 10. Rc1 {[%emt 0:07:37] E16: Queen's Indian: 4 g3 Bb7 5 Bg2 Bb4+.} d6 {[%emt 0:02:41]} 11. Re1 {[%emt 0:04:43]} Qc7 {[%emt 0:12:40]} 12. e4 {[%emt 0:12:56]} e5 {[%emt 0:06:13]} 13. Nh4 $146 {[%emt 0:02:15]} ({Predecessor:} 13. Qc2 Nbd7 14. Bh3 Rfe8 15. Bxd7 Nxd7 16. d5 Nc5 17. Nb3 Na6 18. Nbd2 Rf8 19. h4 {0-1 Gascon del Nogal,J (2425)-Martinez Alcantara,J (2620) Titled Tuesday intern op 21st July blitz 2020 (1)}) 13... Nc6 {[%emt 0:03:14]} 14. Ndf3 {[%emt 0:04:07]} g6 {[%emt 0:08:59]} 15. Qd2 {[%emt 0:02:57]} Qe7 {[%emt 0:02:01]} 16. Qg5 {[%emt 0:03:45]} Nd7 {[%emt 0:08:40]} 17. Qxe7 {[%emt 0:06:06]} Nxe7 {[%emt 0:00:05]} 18. Bh3 {[%emt 0:00:19]} Rfd8 {[%emt 0:14:26]} 19. Rcd1 {[%emt 0:09:35]} Nf6 {[%emt 0:01:26]} 20. dxe5 {[%emt 0:00:10]} dxe5 {[%emt 0:00:05]} 21. Nxe5 {[%emt 0:00:26]} Bxe4 {[%emt 0:15:02]} 22. Nd7 {[%emt 0:01:43]} Kg7 {[%emt 0:00:11]} 23. Rd6 {[%emt 0:08:58]} (23. Nxb6 {simplifies} Rxd1 24. Rxd1 Rb8 25. Rd6) 23... Bc6 {[%emt 0:06:11]} 24. Rxe7 {[%emt 0:04:30]} Bxd7 {[%emt 0:00:10]} 25. Bxd7 {[%emt 0:00:24]} Kf8 {[%emt 0:00:51]} 26. Re2 {[%emt 0:00:25]} Nxd7 {[%emt 0:00:13]} 27. Nf3 {[%emt 0:00:12]} Rab8 {[%emt 0:01:31]} 28. Red2 {[%emt 0:05:58]} Ke7 {[%emt 0:00:13]} 29. Rc6 {[%emt 0:00:02]} Rdc8 {[%emt 0:02:18]} 30. Nd4 {[%emt 0:01:10]} Nc5 {[%emt 0:00:39]} 31. Re2+ {[%emt 0:03:01]} Kf8 {[%emt 0:00:24]} 32. Rf6 {[%emt 0:01:20]} ({White should play} 32. b3 $11) 32... Kg7 {[%emt 0:00:45]} (32... Re8 $15 {should be considered.} 33. Rxe8+ Kxe8) 33. Rd6 $11 {[%emt 0:00:36]} Rd8 {[%emt 0:00:39]} 34. Nb5 $1 {[%emt 0:00:51]} Rxd6 {[%emt 0:01:01]} 35. Nxd6 {[%emt 0:00:02]} Rd8 {[%emt 0:00:28]} 36. Ne8+ $1 {[%emt 0:00:25]} Kf8 {[%emt 0:00:10]} 37. Nf6 {[%emt 0:00:04]} h5 {[%emt 0:00:32]} 38. Nd5 {[%emt 0:00:59]} b5 {[%emt 0:00:42]} 39. Ne3 {[%emt 0:00:29]} bxc4 {[%emt 0:01:23]} 40. Nxc4 {[%emt 0:00:03]} Rd1+ {[%emt 0:01:16]} 41. Kg2 {[%emt 0:30:10]} a4 {[%emt 0:30:49]} 42. Nb6 {[%emt 0:00:00]} Ra1 {[%emt 0:00:00]} 43. Nd5 {[%emt 0:00:00]} b3 {[%emt 0:00:00]} 44. axb3 {[%emt 0:00:00]} axb3 {[%emt 0:00:00]} 45. Kf3 {[%emt 0:00:00]} g5 {[%emt 0:00:00]} 46. Ke3 {[%emt 0:00:00]} Rc1 {[%emt 0:00:00]} 47. f4 {[%emt 0:00:00]} g4 {[%emt 0:00:00]} 48. Kd2 {[%emt 0:00:00]} Rc2+ {[%emt 0:00:00]} 49. Ke3 {[%emt 0:00:00]} Rc1 {[%emt 0:00:00]} 50. Kd4 {[%emt 0:00:00]} Na4 {[%emt 0:02:06]} 51. Ne3 {[%emt 0:01:26]} Kg7 {[%emt 0:02:06]} 52. Rd2 {[%emt 0:01:08]} Kg6 {[%emt 0:00:39]} 53. Rd3 {[%emt 0:01:18]} Rc2 {[%emt 0:01:59]} 54. Rxb3 {[%emt 0:00:18]} (54. f5+ Kg5 55. Rxb3 (55. Nxc2 $2 bxc2 56. b3 c1=Q $19) 55... Rd2+ (55... Rxb2 56. Rxb2 Nxb2 57. Ke4 $11) (55... Rxh2 56. Nc4 $11) 56. Kc4 Rxh2 $17 (56... Rxb2 57. Rxb2 Nxb2+ 58. Kd4 $11)) 54... Rd2+ {[%emt 0:00:41]} 55. Rd3 {[%emt 0:03:01]} Rxb2 {[%emt 0:00:22]} 56. Ra3 {[%emt 0:01:29]} Rd2+ {[%emt 0:00:59]} 57. Kc4 {[%emt 0:00:20]} Nb2+ {[%emt 0:00:46]} 58. Kc3 {[%emt 0:00:02]} Rxh2 {[%emt 0:00:11]} 59. Ra6+ {[%emt 0:00:45]} f6 {[%emt 0:00:18]} 60. f5+ {[%emt 0:00:01]} Kg5 {[%emt 0:01:01]} 61. Ra8 {[%emt 0:00:01]} Rf2 {[%emt 0:00:31]} 62. Rg8+ {[%emt 0:03:56]} Kh6 {[%emt 0:00:03]} 63. Rh8+ {[%emt 0:00:26]} Kg5 {[%emt 0:00:52]} 64. Rg8+ {[%emt 0:00:02]} Kh6 {[%emt 0:00:04]} 65. Rh8+ {[%emt 0:00:22]} Kg5 {[%emt 0:00:23]} 66. Rg8+ {[%emt 0:00:06]} Kh6 {[%emt 0:00:05]} 67. Rh8+ {[%emt 0:03:55]} 1/2-1/2

[Event "45th FIDE Olympiad 2024"]
[Site "Budapest"]
[Date "2024.09.18"]
[Round "7.50"]
[White "Gabriel, Sixtus"]
[Black "Espirito Santo, Waldyr"]
[Result "1-0"]
[WhiteElo "1800"]
[BlackElo "1926"]
[PlyCount "151"]
[EventDate "2024.09.05"]
[EventType "team-tourn"]
[EventCountry "HUN"]
[WhiteTeam "Saint Lucia"]
[BlackTeam "Sao Tome and Principe"]
[BlackTeamCountry "SAO"]
[TimeControl "40/5400+30:1800+30"]

1. d4 Nf6 2. Bg5 e6 3. e4 Be7 4. e5 Ng8 5. Be3 d6 6. f4 Nc6 7. Nf3 Nh6 8. c3 Nf5 9. Bf2 h5 10. h4 Bd7 11. Bd3 Nh6 12. Nbd2 Ng4 13. Qe2 d5 14. Ng5 a6 15. Nf1 g6 16. Qc2 Kf8 17. Ne3 Nxe3 18. Bxe3 Kg7 19. O-O-O Na5 20. Rdg1 Bb5 21. g4 Bxd3 22. Qxd3 Bxg5 23. fxg5 Nc6 24. Qf1 Kg8 25. Rh2 Qe7 26. Rf2 Rf8 27. Qd3 Qe8 28. b3 b5 29. Kb1 b4 30. cxb4 Nxb4 31. Qc3 Qb5 32. a3 Nc6 33. gxh5 Rxh5 34. Rg4 Ne7 35. a4 Qb7 36. Rc2 Rb8 37. Ka2 Nf5 38. Bf2 Kg7 39. Rf4 Rhh8 40. Rf3 Rbc8 41. Qe1 c6 42. Rc5 Rh7 43. Ka3 Rch8 44. Qc3 Qe7 45. b4 Rb8 46. a5 Rb5 47. Rxc6 Rxa5+ 48. Kb3 Rb5 49. Rxa6 Qb7 50. Ra4 Nxh4 51. Bxh4 Rxh4 52. Rh3 Rxh3 53. Qxh3 Qc8 54. Qc3 Qd8 55. Qc1 Rb7 56. Ra2 Qb6 57. Qc5 Qd8 58. Qc6 Rb8 59. Qd6 Qh8 60. Ra7 Qh3+ 61. Ka4 Re8 62. Ka5 Qc3 63. Qc5 Qd2 64. Kb6 Qxg5 65. b5 Qh4 66. Ka6 Qf2 67. b6 Rb8 68. Kb5 g5 69. b7 g4 70. Qc7 g3 71. Qxb8 g2 72. Ra8 Qb2+ 73. Kc6 Qc3+ 74. Kd7 Qb2 75. Qh8+ Kg6 76. Qf6+ 1-0

[Event "45th FIDE Olympiad 2024"]
[Site "Budapest"]
[Date "2024.09.18"]
[Round "7.51"]
[White "Vallejo Pons, Francisco"]
[Black "Kantans, Toms"]
[Result "1/2-1/2"]
[ECO "B40"]
[WhiteElo "2657"]
[BlackElo "2486"]
[Annotator "TA"]
[PlyCount "159"]
[EventDate "2024.09.05"]
[EventType "team-tourn"]
[EventCountry "HUN"]
[SourceTitle "playchess.com"]
[Source "ChessBase"]
[SourceQuality "1"]
[WhiteTeam "Spain"]
[BlackTeam "Latvia"]
[WhiteTeamCountry "ESP"]
[BlackTeamCountry "LAT"]
[TimeControl "40/5400+30:1800+30"]

{[%evp 86,159,70,70,71,68,72,70,72,72,69,-8,75,74,75,75,75,75,75,75,78,75,75,75,75,28,39,0,12,12,12,11,12,12,12,12,12,12,12,12,28,28,28,28,28,24,40,40,40,40,40,40,40,40,40,40,40,40,40,40,40,40,40,52,40,40,40,40,40,40,40,40,40,0,40,8]} 1. e4 {[%emt 0:00:05]} c5 {[%emt 0:00:10]} 2. Nf3 {[%emt 0:00:07]} e6 {[%emt 0:00:06]} 3. b3 {[%emt 0:00:51]} Nc6 {[%emt 0:06:52]} 4. Bb2 {[%emt 0:01:10]} a6 {[%emt 0:03:54]} 5. g3 {[%emt 0:00:46]} d5 {[%emt 0:02:42]} 6. exd5 {[%emt 0:00:26] B40: Sicilian: 2...e6, Unusual lines.} exd5 {[%emt 0:00:08]} 7. Qe2+ {[%emt 0:00:32]} Qe7 {[%emt 0:05:54]} 8. Qxe7+ {[%emt 0:09:41]} Ngxe7 {[%emt 0:00:42]} 9. Bg2 {[%emt 0:03:03]} Bf5 {[%emt 0:06:34]} 10. d3 {[%emt 0:03:13]} O-O-O {[%emt 0:08:10]} 11. O-O {[%emt 0:01:12]} f6 {[%emt 0:03:17]} 12. Nbd2 {[%emt 0:03:11]} Ng6 {[%emt 0:01:26]} 13. h4 {[%emt 0:07:00]} h5 {[%emt 0:01:24]} 14. d4 {[%emt 0:11:54]} Kc7 {[%emt 0:09:15]} 15. a3 {[%emt 0:06:56]} cxd4 $146 {[%emt 0:10:30]} ({Predecessor:} 15... Be7 16. dxc5 Bxc5 17. b4 Ba7 18. c4 dxc4 19. Nxc4 Bd3 20. Rfc1 Rhe8 21. Bf1 Bxf1 22. Kxf1 {1-0 Tilicheev,V (2437)-Perunovic,M (2624) Skopje Mitrov Tikata Memorial rapid 2015 (4)}) 16. Nxd4 {[%emt 0:04:52]} Nxd4 {[%emt 0:00:14]} 17. Bxd4 {[%emt 0:00:02]} Ne5 {[%emt 0:00:11]} 18. Bxe5+ {[%emt 0:16:07]} fxe5 {[%emt 0:00:59]} 19. Rfe1 {[%emt 0:01:27]} Bc5 {[%emt 0:12:57]} 20. b4 {[%emt 0:13:42]} Ba7 {[%emt 0:04:53]} 21. Rxe5 {[%emt 0:01:50]} Rhf8 {[%emt 0:02:09]} 22. Rf1 {[%emt 0:02:02]} Bxc2 {[%emt 0:04:24]} 23. Rc1 {[%emt 0:03:49]} Rxf2 {[%emt 0:00:40]} 24. Rxc2+ {[%emt 0:00:40]} Kd6 {[%emt 0:00:36]} 25. Rxd5+ {[%emt 0:00:56]} Ke6 {[%emt 0:00:46]} 26. Rxd8 {[%emt 0:01:20]} Rxd2+ {[%emt 0:00:07]} 27. Kf1 {[%emt 0:01:02]} Rxc2 {[%emt 0:00:07]} 28. Bxb7 {[%emt 0:00:16]} Rc3 {[%emt 0:01:26]} 29. Ra8 {[%emt 0:01:34]} Bd4 {[%emt 0:01:49]} 30. Rxa6+ {[%emt 0:00:03]} Kf5 {[%emt 0:00:22]} 31. Kg2 {[%emt 0:03:26]} Be5 {[%emt 0:00:22]} 32. Bf3 {[%emt 0:00:19]} Rc2+ {[%emt 0:00:06]} 33. Kh3 {[%emt 0:00:40]} Rc3 {[%emt 0:00:02]} 34. Kg2 {[%emt 0:00:03]} Rc2+ {[%emt 0:00:05]} 35. Kf1 {[%emt 0:00:58]} Bxg3 {[%emt 0:02:29]} 36. Bxh5 {[%emt 0:00:10]} Rf2+ {[%emt 0:02:33]} 37. Ke1 {[%emt 0:01:05]} Bxh4 {[%emt 0:00:07]} 38. Bg6+ {[%emt 0:01:45]} Ke5 {[%emt 0:01:25]} 39. Kd1 {[%emt 0:00:22]} Kd4 {[%emt 0:03:20]} 40. Rd6+ {[%emt 0:00:52]} Kc4 {[%emt 0:00:14]} 41. Rd7 {[%emt 0:10:42]} Bf6 {[%emt 0:12:36]} 42. Rc7+ {[%emt 0:04:48]} Kb3 {[%emt 0:03:45]} 43. b5 {[%emt 0:02:16]} Kxa3 {[%emt 0:03:35]} (43... Be5 $11 44. Ra7) 44. b6 $14 {[%emt 0:00:42]} Be5 {[%emt 0:03:56]} 45. Rc5 {[%emt 0:02:39]} Bh2 {[%emt 0:04:57]} 46. b7 {[%emt 0:01:03]} Rb2 {[%emt 0:04:12]} 47. Be4 {[%emt 0:00:34]} Rb4 {[%emt 0:00:44]} 48. Bd5 {[%emt 0:03:12]} ({Better is} 48. Bf3 $14) 48... Rb6 {[%emt 0:02:01]} (48... Rd4+ $1 $11 49. Ke1 Kb4) 49. Kc2 {[%emt 0:02:07]} Bd6 {[%emt 0:01:16]} 50. Rc8 {[%emt 0:01:41]} Kb4 {[%emt 0:00:14]} 51. Kd3 {[%emt 0:00:18]} g5 {[%emt 0:00:38]} 52. Kd4 {[%emt 0:00:38]} Bf4 {[%emt 0:01:34]} 53. Rc2 {[%emt 0:00:36]} Kb5 {[%emt 0:01:46]} 54. Ra2 {[%emt 0:01:19]} Kb4 {[%emt 0:00:40]} 55. Rb2+ {[%emt 0:02:38]} (55. Ke4 $16) 55... Ka5 $11 {[%emt 0:00:04]} 56. Rc2 {[%emt 0:00:12]} Rb4+ {[%emt 0:00:50]} 57. Kd3 {[%emt 0:01:13]} Ka6 {[%emt 0:00:49]} 58. Kc3 {[%emt 0:01:22]} Rxb7 {[%emt 0:01:22]} 59. Bxb7+ {[%emt 0:01:16]} Kxb7 {[%emt 0:00:02]} 60. Kd4 {[%emt 0:00:10]} Kb6 {[%emt 0:00:47]} 61. Kd5 {[%emt 0:00:03]} Kb7 {[%emt 0:00:10]} 62. Rc6 {[%emt 0:00:12]} g4 {[%emt 0:01:22]} 63. Rc4 {[%emt 0:00:16]} Be3 {[%emt 0:00:15]} 64. Rxg4 {[%emt 0:00:10]} Ba7 {[%emt 0:00:54]} 65. Rg7+ {[%emt 0:00:26]} Ka8 {[%emt 0:00:22]} 66. Kc6 {[%emt 0:00:06]} Bf2 {[%emt 0:00:39]} 67. Kc7 {[%emt 0:01:29]} Be3 {[%emt 0:00:26]} 68. Rf7 {[%emt 0:00:17]} Bd4 {[%emt 0:00:25]} 69. Rf5 {[%emt 0:00:31]} Be3 {[%emt 0:00:21]} 70. Rf3 {[%emt 0:01:24]} Bd4 {[%emt 0:00:17]} 71. Ra3+ {[%emt 0:00:30]} Ba7 {[%emt 0:00:05]} 72. Rb3 {[%emt 0:00:07]} Bf2 {[%emt 0:00:38]} 73. Rd3 {[%emt 0:01:17]} Bg1 {[%emt 0:00:25]} 74. Rd8+ {[%emt 0:00:35]} Ka7 {[%emt 0:00:01]} 75. Rd1 {[%emt 0:00:08]} Bb6+ {[%emt 0:01:07]} 76. Kc6 {[%emt 0:00:05]} Bf2 {[%emt 0:00:14]} 77. Ra1+ {[%emt 0:00:27]} Kb8 {[%emt 0:00:06]} 78. Rb1+ {[%emt 0:00:09]} Ka8 {[%emt 0:00:18]} 79. Ra1+ {[%emt 0:00:05]} Kb8 {[%emt 0:00:04]} 80. Ra8+ {[%emt 0:00:03]} 1/2-1/2

[Event "45th FIDE Olympiad 2024"]
[Site "Budapest"]
[Date "2024.09.18"]
[Round "7.51"]
[White "Lima, Osvaldo Dos Santos"]
[Black "James, Justin"]
[Result "0-1"]
[WhiteElo "1903"]
[BlackElo "1745"]
[Annotator "RC"]
[PlyCount "104"]
[EventDate "2024.09.05"]
[EventType "team-tourn"]
[EventCountry "HUN"]
[WhiteTeam "Sao Tome and Principe"]
[BlackTeam "Saint Lucia"]
[WhiteTeamCountry "SAO"]
[TimeControl "40/5400+30:1800+30"]

1. c4 c6 2. d4 d5 3. cxd5 cxd5 4. Nc3 Nf6 5. Nf3 Nc6 6. g3 g6 7. Bg2 Bg7 8. O-O e6 9. e3 O-O 10. b3 a6 11. Bb2 b5 12. Rc1 Bb7 13. Ne1 Qe7 14. Nd3 Nd7 15. Qd2 Rab8 16. Nb1 b4 17. Nc5 Nxc5 18. Rxc5 Rfc8 19. Rfc1 a5 20. R1c2 Qd7 21. Qc1 Bf8 22. Nd2 Bxc5 23. dxc5 e5 24. Nf3 f6 25. Rd2 Rd8 26. Ne1 Qf7 27. Bf1 Ne7 28. f3 Bc6 29. Qc2 Kg7 30. g4 Rd7 31. f4 Qe6 32. g5 d4 33. gxf6+ Qxf6 34. fxe5 Qg5+ 35. Ng2 Bxg2 36. h4 Qxe3+ 37. Kxg2 Nf5 38. Rd3 Nxh4+ 39. Kh1 Qxe5 40. Bg2 Nxg2 41. Kxg2 Rc8 42. c6 Qe4+ 43. Kh2 Rxc6 44. Qd2 Rcd6 45. Rh3 Re6 46. Qh6+ Kg8 47. Rg3 Rf7 48. Bc1 Rf2+ 49. Kh3 Qh1+ 50. Kg4 Re4+ 51. Bf4 Rexf4+ 52. Qxf4 Qh5# {0-} 0-1

[Event "45th FIDE Olympiad 2024"]
[Site "Budapest"]
[Date "2024.09.18"]
[Round "7.52"]
[White "Miezis, Normunds"]
[Black "Santos Latasa, Jaime"]
[Result "0-1"]
[ECO "A29"]
[WhiteElo "2417"]
[BlackElo "2624"]
[Annotator "TA"]
[PlyCount "82"]
[EventDate "2024.09.05"]
[EventType "team-tourn"]
[EventCountry "HUN"]
[SourceTitle "playchess.com"]
[Source "ChessBase"]
[SourceQuality "1"]
[WhiteTeam "Latvia"]
[BlackTeam "Spain"]
[WhiteTeamCountry "LAT"]
[BlackTeamCountry "ESP"]
[TimeControl "40/5400+30:1800+30"]

{[%evp 24,82,0,0,-2,0,-3,-22,-15,-11,-6,-9,0,0,0,-14,0,-19,-14,-25,0,-16,-8,-45,-49,-33,-29,-28,-33,-37,-9,-85,-60,-107,-75,-133,-118,-129,-124,-117,-114,-120,-104,-104,-71,-667,-651,-5194,-4918,-2542,-2035,-1862,-644,-971,-953,-5900,-5297,-29987,-731,-672,-650]} 1. c4 {[%emt 0:00:05]} e5 {[%emt 0:00:11]} 2. Nc3 {[%emt 0:00:35]} Nf6 {[%emt 0:00:04]} 3. Nf3 {[%emt 0:01:47]} Nc6 {[%emt 0:00:14]} 4. g3 {[%emt 0:02:57]} d5 {[%emt 0:01:26]} 5. cxd5 {[%emt 0:00:22]} Nxd5 {[%emt 0:00:04]} 6. Bg2 {[%emt 0:00:23]} Nb6 {[%emt 0:00:05]} 7. O-O {[%emt 0:03:13]} Be7 {[%emt 0:00:22]} 8. a3 {[%emt 0:01:41]} O-O {[%emt 0:00:37]} 9. b4 {[%emt 0:01:01]} Be6 {[%emt 0:01:06]} 10. Rb1 {[%emt 0:03:16]} f6 {[%emt 0:02:11]} 11. d3 {[%emt 0:04:28]} a5 {[%emt 0:01:00]} 12. b5 {[%emt 0:01:13]} Nd4 {[%emt 0:00:05]} 13. Nd2 {[%emt 0:02:55]} Qc8 {[%emt 0:01:05]} 14. e3 {[%emt 0:07:06]} Nf5 {[%emt 0:02:09]} 15. Nde4 {[%emt 0:14:19]} a4 {[%emt 0:04:08] The position is equal.} 16. f4 {[%emt 0:11:45]} exf4 {[%emt 0:06:07]} 17. Rxf4 {[%emt 0:00:41]} Rd8 {[%emt 0:11:02]} 18. Qc2 {[%emt 0:07:46]} Nh6 {[%emt 0:01:50]} 19. d4 {[%emt 0:04:51]} Nf7 {[%emt 0:01:55]} 20. Nc5 {[%emt 0:03:40]} Bxc5 {[%emt 0:03:10]} 21. dxc5 {[%emt 0:00:21]} Nc4 {[%emt 0:00:43]} 22. Rb4 {[%emt 0:06:57]} Nce5 {[%emt 0:02:18] Threatening ...Bb3.} 23. Rbd4 {[%emt 0:01:45]} Bb3 {[%emt 0:02:24]} 24. Qe2 {[%emt 0:06:37]} c6 {[%emt 0:00:28] Prevents Nd5.} 25. bxc6 {[%emt 0:04:03]} bxc6 {[%emt 0:00:41]} 26. Bb2 {[%emt 0:01:39]} Ng5 {[%emt 0:03:23] next ...Ne6 is good for Black.} 27. Rxd8+ {[%emt 0:03:32]} (27. Ne4 $1 $11) 27... Qxd8 $17 {[%emt 0:00:21]} 28. Rd4 {[%emt 0:00:37]} (28. Rb4 $15) 28... Qf8 $36 {[%emt 0:05:30][%mdl 2048] Black is on the roll.} 29. Rd6 {[%emt 0:02:21]} (29. Rb4 $142) 29... Ngf7 {[%emt 0:01:26][%cal Bg5f7,Bf7e5,Be5c4][%mdl 32] A dynamic duo of knights.} 30. Bxc6 {[%emt 0:01:00]} Nxc6 {[%emt 0:03:43]} (30... Nxd6 31. Bxa8 Qxa8 32. cxd6 $19) 31. Rxc6 {[%emt 0:00:05]} Ne5 {[%emt 0:00:16]} 32. Rd6 {[%emt 0:00:55]} Nc4 {[%emt 0:01:14]} 33. Rd7 {[%emt 0:01:38] [#] Threatens to win with Ne4.} Qxc5 {[%emt 0:02:06][%cal Oc4b2] ...Nxb2! would now be deadly.} (33... Nxb2 {simplifies} 34. Qxb2 Qxc5 35. Rd4 Rc8) 34. Nd5 $2 {[%emt 0:01:24][%mdl 8192] White does not recover from this.} (34. Ne4 $17 Qf5 (34... Qxe3+ 35. Qxe3 Nxe3 36. Bxf6 $11) 35. Qd3) 34... Nxb2 $1 $19 {[%emt 0:01:15]} (34... Nxa3 35. Qg4 Qf8 36. Nxf6+ (36. Bxf6 Qf7 37. Rxf7 Kxf7 38. e4 gxf6 39. Qd7+ Kg6 40. Qf5+ Kh6 41. Qxf6+ Kh5 42. h3 Bxd5 43. g4#) (36. Bxa3 f5 $18) 36... Kh8 37. Nh5) 35. Qg4 {[%emt 0:00:25][%csl Gd7][%cal Rg4g7]} Qc1+ {[%emt 0:01:13]} (35... Bxd5 36. Qxg7#) 36. Kg2 {[%emt 0:00:03]} Bxd5+ {[%emt 0:00:05]} 37. Rxd5 {[%emt 0:00:07]} Qc6 {[%emt 0:00:52]} ({Not} 37... Qxe3 38. Rd7 Qg5 (38... Qxa3 39. Qxg7#) 39. Qb4 $17) 38. e4 {[%emt 0:00:17]} Nc4 {[%emt 0:00:10] [#] ( -> ...Ne3+)} 39. Kh3 {[%emt 0:00:32]} Ne3 {[%emt 0:00:21]} 40. Qd7 {[%emt 0:00:21]} Qxd7+ {[%emt 0:00:08]} (40... Qc2 $142 41. Rd2 Qxe4 42. Rc2 f5 (42... Qxc2 $2 43. Qe6+ Kh8 44. Qxe3 $19) (42... Nxc2 {is a self mate.} 43. Qd2 Qf5+ 44. Kg2 Re8 45. Qf4 Ne3+ 46. Kf3 Qd5+ 47. Qe4 Qxe4+ 48. Kf2 Qg2+ 49. Ke1 Nf1+ 50. Kd1 Qd2#) 43. Rc8+ Rxc8 44. Qxc8+ Kf7 45. Qc7+ Kg6 (45... Qe7 $2 46. Qxe7+ Kxe7 47. Kh4 $19) 46. Qb6+ Kh5 47. Qxe3 Qxe3 48. Kg2 Qe2+ (48... Qxa3 {gets mated.} 49. h3 Qd3 50. Kh2 a3 51. Kg2 a2 52. Kf2 a1=Q 53. g4+ Kh4 54. gxf5 Qaf1#) 49. Kg1 Kg4 50. h4 Kxg3 51. Kh1 Qh2#) 41. Rxd7 {[%emt 0:30:11]} Ra5 {[%emt 0:30:54] Weighted Error Value: White=1.02/Black=0.47.  Loses game:     	White=1     	---        Mistake:       	White=3     	---        Inaccurate:     	White=2     	Black=2      OK:         	White=7     	Black=6      Best:        	---       	Black=2      Strong:       	---       	Black=1} 0-1

[Event "45th FIDE Olympiad 2024"]
[Site "Budapest"]
[Date "2024.09.18"]
[Round "7.52"]
[White "Elizee, Kaieem"]
[Black "Semedo, Adelino"]
[Result "1-0"]
[WhiteElo "1701"]
[BlackElo "1827"]
[PlyCount "51"]
[EventDate "2024.09.05"]
[EventType "team-tourn"]
[EventCountry "HUN"]
[WhiteTeam "Saint Lucia"]
[BlackTeam "Sao Tome and Principe"]
[BlackTeamCountry "SAO"]
[TimeControl "40/5400+30:1800+30"]

1. d4 d5 2. c4 e6 3. Nf3 Nf6 4. Bg5 h6 5. Bh4 c5 6. cxd5 exd5 7. e3 Nc6 8. Be2 c4 9. O-O Be7 10. b3 cxb3 11. Qxb3 O-O 12. Nc3 Na5 13. Qc2 Be6 14. Ne5 Rc8 15. Qb2 Ne4 16. Bxe7 Qxe7 17. Rac1 f6 18. Ng6 Qf7 19. Nxf8 Rxf8 20. Nxe4 dxe4 21. Rc2 Qg6 22. Rfc1 f5 23. d5 Bd7 24. Bb5 Qd6 25. Bxd7 Qxd7 26. Rc7 1-0